Workbook

Sheet Runs by person
A1: 2016 Juniors Results
A2: Double click on the number in column C adjacent to your name to reveal the run details.
A3: Row Labels | B3: First Name | C3: Runs Completed
A4: Alcock | B4: Reg | C4: 1
A5: Alcock | B5: Shirley | C5: 1
A6: Barrier | B6: Michael | C6: 1
A7: Bartulovich | B7: Luka | C7: 4
A8: Carey | B8: Lachlan | C8: 3
A9: Chadwick-Bray | B9: Gracy | C9: 7
A10: Cooper | B10: Jardine | C10: 1
A11: Fairley | B11: Leo | C11: 4
A12: Fairley | B12: Ned | C12: 1
A13: Ferguson | B13: Matthew | C13: 6
A14: Godier | B14: Isabella | C14: 2
A15: Godier | B15: Mikayla | C15: 2
A16: Horne | B16: Nathaniel | C16: 8
A17: James | B17: Elena | C17: 14
A18: Jenkinson | B18: Alli | C18: 1
A19: Kerby | B19: Jayne | C19: 2
A20: Kerby | B20: William | C20: 2
A21: Kipping | B21: Hannah | C21: 1
A22: Knowles | B22: Hayley | C22: 1
A23: Knowles | B23: Meghan | C23: 1
A24: Latouf | B24: Connor | C24: 3
A25: Latouf | B25: Reilly | C25: 3
A26: Leyton | B26: Clifford | C26: 1
A27: Machin | B27: Dylan | C27: 12
A28: Machin | B28: Francie | C28: 1
A29: Machin | B29: Jake | C29: 12
A30: Maguire | B30: Matthew | C30: 1
A31: Marano | B31: Drew | C31: 1
A32: Marchioni | B32: Declan | C32: 2
A33: Marquez | B33: Bella | C33: 5
A34: Marquez | B34: Josh | C34: 7
A35: McGhie | B35: Jett | C35: 1
A36: McGhie | B36: Sam | C36: 1
A37: Nethery | B37: Tesfa | C37: 1
A38: Nethery | B38: Yideg | C38: 2
A39: Norris | B39: Bella | C39: 4
A40: Norris | B40: Hannah | C40: 1
A41: Nugent | B41: Lauren | C41: 1
A42: Penny | B42: Jorja | C42: 1
A43: Punshon | B43: Declan | C43: 3
A44: Punshon | B44: Thaddaeus | C44: 1
A45: Raciti | B45: Ella | C45: 1
A46: Sampson | B46: Ethan | C46: 1
A47: Schick | B47: Caitlin | C47: 1
A48: Schick | B48: Emma | C48: 1
A49: Schick | B49: Max | C49: 2
A50: Smithers | B50: Riley | C50: 2
A51: Stafford | B51: Taylor | C51: 4
A52: Stallan | B52: Kye | C52: 1
A53: Stallan | B53: Tyla | C53: 1
A54: Staunton | B54: Ethan | C54: 3
A55: Staunton | B55: Molly | C55: 3
A56: Stokes | B56: Eloise | C56: 1
A57: Talbot | B57: Dylan | C57: 1
A58: Taylor | B58: Brooke | C58: 6
A59: Vacs | B59: Zach | C59: 1

Sheet Run Results
A1: 2016 Junior Results - Junior Runs
A2: Date | B2: Run | C2: Distance | D2: Place | E2: Time | F2: Member/Non Member# | G2: First Name | H2: Surname | I2: Surname First Name | J2: Gender | K2: Age group | L2: PointS
A3: 2016-03-12 | B3: Strand Run | C3: 2 | D3: 1 | E3: 7.02 | F3: J_001 | G3: William | H3: Kerby | I3: =H3&"-"&G3 -> Kerby-William | J3: M | K3: N/A | L3: 5
A4: 2016-03-12 | B4: Strand Run | C4: 2 | D4: 2 | E4: 7.09 | F4: 515150 | G4: Connor | H4: Latouf | I4: =H4&"-"&G4 -> Latouf-Connor | J4: M | K4: 3 - 14 years to 15 years | L4: 5
A5: 2016-03-12 | B5: Strand Run | C5: 2 | D5: 3 | E5: 7.32 | F5: 97077 | G5: Nathaniel | H5: Horne | I5: Horne-Nathaniel | J5: M | K5: 3 - 14 years to 15 years | L5: 4
A6: 2016-03-12 | B6: Strand Run | C6: 2 | D6: 4 | E6: 7.39 | F6: 402509 | G6: Elena | H6: James | I6: James-Elena | J6: F | K6: 3 - 14 years to 15 years | L6: 5
A7: 2016-03-12 | B7: Strand Run | C7: 2 | D7: 5 | E7: 7.57 | F7: 402848 | G7: Josh | H7: Marquez | I7: Marquez-Josh | J7: M | K7: 2 - 12 years to 13 years | L7: 5
A8: 2016-03-12 | B8: Strand Run | C8: 2 | D8: 6 | E8: 8.10 | F8: J_002 | G8: Jayne | H8: Kerby | I8: Kerby-Jayne | J8: F | K8: N/A | L8: 5
A9: 2016-03-12 | B9: Strand Run | C9: 2 | D9: 7 | E9: 8.11 | F9: 515441 | G9: Brooke | H9: Taylor | I9: Taylor-Brooke | J9: F | K9: 2 - 12 years to 13 years | L9: 5
A10: 2016-03-12 | B10: Strand Run | C10: 2 | D10: 8 | E10: 8.23 | F10: 197247 | G10: Bella | H10: Marquez | I10: Marquez-Bella | J10: F | K10: 1 - to 11 years | L10: 5
A11: 2016-03-12 | B11: Strand Run | C11: 2 | D11: 9 | E11: 8.37 | F11: 402859 | G11: Hannah | H11: Kipping | I11: Kipping-Hannah | J11: F | K11: 3 - 14 years to 15 years | L11: 4
A12: 2016-03-12 | B12: Strand Run | C12: 2 | D12: 10 | E12: 8.37 | F12: 515981 | G12: Clifford | H12: Leyton | I12: Leyton-Clifford | J12: M | K12: 2 - 12 years to 13 years | L12: 4
A13: 2016-03-12 | B13: Strand Run | C13: 2 | D13: 11 | E13: 10.23 | F13: J_003 | G13: Zach | H13: Vacs | I13: Vacs-Zach | J13: M | K13: N/A | L13: 4
A14: 2016-03-12 | B14: Strand Run | C14: 2 | D14: 12 | E14: 11.01 | F14: 402785 | G14: Taylor | H14: Stafford | I14: Stafford-Taylor | J14: F | K14: 2 - 12 years to 13 years | L14: 4
A15: 2016-03-12 | B15: Strand Run | C15: 2 | D15: 13 | E15: 11.22 | F15: J_006 | G15: Reilly | H15: Latouf | I15: Latouf-Reilly | J15: M | K15: 1 - to 11 years | L15: 5
A16: 2016-04-02 | B16: Fairfield Waters Run | C16: 2 | D16: 1 | E16: 7.13 | F16: 515150 | G16: Connor | H16: Latouf | I16: Latouf-Connor | J16: M | K16: 3 - 14 years to 15 years | L16: 5
A17: 2016-04-02 | B17: Fairfield Waters Run | C17: 2 | D17: 2 | E17: 7.23 | F17: 97077 | G17: Nathaniel | H17: Horne | I17: Horne-Nathaniel | J17: M | K17: 3 - 14 years to 15 years | L17: 4
A18: 2016-04-02 | B18: Fairfield Waters Run | C18: 2 | D18: 3 | E18: 7.31 | F18: 402520 | G18: Eloise | H18: Stokes | I18: Stokes-Eloise | J18: F | K18: 4 - 16 years to 17 years | L18: 5
A19: 2016-04-02 | B19: Fairfield Waters Run | C19: 2 | D19: 4 | E19: 7.32 | F19: 402509 | G19: Elena | H19: James | I19: James-Elena | J19: F | K19: 3 - 14 years to 15 years | L19: 5
A20: 2016-04-02 | B20: Fairfield Waters Run | C20: 2 | D20: 5 | E20: 7.49 | F20: 402848 | G20: Josh | H20: Marquez | I20: Marquez-Josh | J20: M | K20: 2 - 12 years to 13 years | L20: 5
A21: 2016-04-02 | B21: Fairfield Waters Run | C21: 2 | D21: 6 | E21: 8.01 | F21: 560071 | G21: Matthew | H21: Ferguson | I21: Ferguson-Matthew | J21: M | K21: 2 - 12 years to 13 years | L21: 4
A22: 2016-04-02 | B22: Fairfield Waters Run | C22: 2 | D22: 7 | E22: 8.21 | F22: 197247 | G22: Bella | H22: Marquez | I22: Marquez-Bella | J22: F | K22: 1 - to 11 years | L22: 5
A23: 2016-04-02 | B23: Fairfield Waters Run | C23: 2 | D23: 8 | E23: 8.26 | F23: 515441 | G23: Brooke | H23: Taylor | I23: Taylor-Brooke | J23: F | K23: 2 - 12 years to 13 years | L23: 5
A24: 2016-04-02 | B24: Fairfield Waters Run | C24: 2 | D24: 9 | E24: 9.03 | F24: 612424 | G24: Jake | H24: Machin | I24: Machin-Jake | J24: M | K24: 2 - 12 years to 13 years | L24: 3
A25: 2016-04-02 | B25: Fairfield Waters Run | C25: 2 | D25: 10 | E25: 9.10 | F25: J_006 | G25: Reilly | H25: Latouf | I25: Latouf-Reilly | J25: M | K25: 1 - to 11 years | L25: 5
A26: 2016-04-02 | B26: Fairfield Waters Run | C26: 2 | D26: 11 | E26: 10.01 | F26: J_011 | G26: Max | H26: Schick | I26: Schick-Max | J26: M | K26: 1 - to 11 years | L26: 4
A27: 2016-04-02 | B27: Fairfield Waters Run | C27: 2 | D27: 12 | E27: 10.35 | F27: 612421 | G27: Dylan | H27: Machin | I27: Machin-Dylan | J27: M | K27: 1 - to 11 years | L27: 3
A28: 2016-04-02 | B28: Fairfield Waters Run | C28: 2 | D28: 13 | E28: 10.55 | F28: J_008 | G28: Thaddaeus | H28: Punshon | I28: Punshon-Thaddaeus | J28: M | K28: 4 - 16 years to 17 years | L28: 5
A29: 2016-04-02 | B29: Fairfield Waters Run | C29: 2 | D29: 14 | E29: 11.53 | F29: 402785 | G29: Taylor | H29: Stafford | I29: Stafford-Taylor | J29: F | K29: 2 - 12 years to 13 years | L29: 4
A30: 2016-04-02 | B30: Fairfield Waters Run | C30: 2 | D30: 15 | E30: 12.31 | F30: J_010 | G30: Emma | H30: Schick | I30: Schick-Emma | J30: F | K30: 1 - to 11 years | L30: 4
A31: 2016-04-02 | B31: Fairfield Waters Run | C31: 2 | D31: 16 | E31: 12.58 | F31: J_007 | G31: Declan | H31: Punshon | I31: Punshon-Declan | J31: M | K31: 1 - to 11 years | L31: 2
A32: 2016-04-02 | B32: Fairfield Waters Run | C32: 2 | D32: 17 | E32: 13.19 | F32: J_009 | G32: Caitlin | H32: Schick | I32: Schick-Caitlin | J32: F | K32: 3 - 14 years to 15 years | L32: 4
A33: 2016-04-16 | B33: River Lower Loop | C33: 3 | D33: 1 | E33: 11.38 | F33: 515150 | G33: Connor | H33: Latouf | I33: Latouf-Connor | J33: M | K33: 3 - 14 years to 15 years | L33: 5
A34: 2016-04-16 | B34: River Lower Loop | C34: 3 | D34: 2 | E34: 12.06 | F34: 402509 | G34: Elena | H34: James | I34: James-Elena | J34: F | K34: 3 - 14 years to 15 years | L34: 5
A35: 2016-04-16 | B35: River Lower Loop | C35: 3 | D35: 3 | E35: 12.44 | F35: 573501 | G35: Leo | H35: Fairley | I35: Fairley-Leo | J35: M | K35: 2 - 12 years to 13 years | L35: 5
A36: 2016-04-16 | B36: River Lower Loop | C36: 3 | D36: 4 | E36: 12.58 | F36: 532459 | G36: Luka | H36: Bartulovich | I36: Bartulovich-Luka | J36: M | K36: 2 - 12 years to 13 years | L36: 4
A37: 2016-04-16 | B37: River Lower Loop | C37: 3 | D37: 5 | E37: 12.59 | F37: 560071 | G37: Matthew | H37: Ferguson | I37: Ferguson-Matthew | J37: M | K37: 2 - 12 years to 13 years | L37: 3
A38: 2016-04-16 | B38: River Lower Loop | C38: 3 | D38: 6 | E38: 13.14 | F38: 515441 | G38: Brooke | H38: Taylor | I38: Taylor-Brooke | J38: F | K38: 2 - 12 years to 13 years | L38: 5
A39: 2016-04-16 | B39: River Lower Loop | C39: 3 | D39: 7 | E39: 14.05 | F39: 402839 | G39: Lachlan | H39: Carey | I39: Carey-Lachlan | J39: M | K39: 3 - 14 years to 15 years | L39: 4
A40: 2016-04-16 | B40: River Lower Loop | C40: 3 | D40: 8 | E40: 15.10 | F40: 97077 | G40: Nathaniel | H40: Horne | I40: Horne-Nathaniel | J40: M | K40: 3 - 14 years to 15 years | L40: 3
A41: 2016-04-16 | B41: River Lower Loop | C41: 3 | D41: 9 | E41: 16.26 | F41: J_006 | G41: Reilly | H41: Latouf | I41: Latouf-Reilly | J41: M | K41: 1 - to 11 years | L41: 5
A42: 2016-04-16 | B42: River Lower Loop | C42: 3 | D42: 10 | E42: 18.10 | F42: 565757 | G42: Gracy | H42: Chadwick-Bray | I42: Chadwick-Bray-Gracy | J42: F | K42: 3 - 14 years to 15 years | L42: 4
A43: 2016-04-16 | B43: River Lower Loop | C43: 3 | D43: 11 | E43: 19.21 | F43: J_007 | G43: Declan | H43: Punshon | I43: Punshon-Declan | J43: M | K43: 1 - to 11 years | L43: 4
A44: 2016-04-16 | B44: River Lower Loop | C44: 3 | D44: 12 | E44: 20.19 | F44: J_022 | G44: Bella | H44: Norris | I44: Norris-Bella | J44: F | K44: 1 - to 11 years | L44: 5
A45: 2016-04-16 | B45: River Lower Loop | C45: 3 | D45: 13 | E45: 21.30 | F45: 402785 | G45: Taylor | H45: Stafford | I45: Stafford-Taylor | J45: F | K45: 2 - 12 years to 13 years | L45: 4
A46: 2016-04-23 | B46: Town Common Loop | C46: 3 | D46: 1 | E46: 12.09 | F46: 323017 | G46: Declan | H46: Marchioni | I46: Marchioni-Declan | J46: M | K46: 3 - 14 years to 15 years | L46: 5
A47: 2016-04-23 | B47: Town Common Loop | C47: 3 | D47: 2 | E47: 12.18 | F47: 402509 | G47: Elena | H47: James | I47: James-Elena | J47: F | K47: 3 - 14 years to 15 years | L47: 5
A48: 2016-04-23 | B48: Town Common Loop | C48: 3 | D48: 3 | E48: 12.34 | F48: 97077 | G48: Nathaniel | H48: Horne | I48: Horne-Nathaniel | J48: M | K48: 3 - 14 years to 15 years | L48: 4
A49: 2016-04-23 | B49: Town Common Loop | C49: 3 | D49: 4 | E49: 12.46 | F49: J_030 | G49: Ethan | H49: Staunton | I49: Staunton-Ethan | J49: M | K49: 1 - to 11 years | L49: 5
A50: 2016-04-23 | B50: Town Common Loop | C50: 3 | D50: 5 | E50: 12.57 | F50: 573501 | G50: Leo | H50: Fairley | I50: Fairley-Leo | J50: M | K50: 2 - 12 years to 13 years | L50: 5
A51: 2016-04-23 | B51: Town Common Loop | C51: 3 | D51: 6 | E51: 13.21 | F51: J_019 | G51: Tyla | H51: Stallan | I51: Stallan-Tyla | J51: F | K51: 4 - 16 years to 17 years | L51: 5
A52: 2016-04-23 | B52: Town Common Loop | C52: 3 | D52: 7 | E52: 13.34 | F52: 515441 | G52: Brooke | H52: Taylor | I52: Taylor-Brooke | J52: F | K52: 2 - 12 years to 13 years | L52: 5
A53: 2016-04-23 | B53: Town Common Loop | C53: 3 | D53: 8 | E53: 14.02 | F53: 402839 | G53: Lachlan | H53: Carey | I53: Carey-Lachlan | J53: M | K53: 3 - 14 years to 15 years | L53: 3
A54: 2016-04-23 | B54: Town Common Loop | C54: 3 | D54: 9 | E54: 14.04 | F54: J_029 | G54: Molly | H54: Staunton | I54: Staunton-Molly | J54: F | K54: 1 - to 11 years | L54: 5
A55: 2016-04-23 | B55: Town Common Loop | C55: 3 | D55: 10 | E55: 14.48 | F55: 612424 | G55: Jake | H55: Machin | I55: Machin-Jake | J55: M | K55: 2 - 12 years to 13 years | L55: 4
A56: 2016-04-23 | B56: Town Common Loop | C56: 3 | D56: 11 | E56: 14.49 | F56: J_024 | G56: Kye | H56: Stallan | I56: Stallan-Kye | J56: M | K56: 1 - to 11 years | L56: 4
A57: 2016-04-23 | B57: Town Common Loop | C57: 3 | D57: 12 | E57: 14.51 | F57: J_026 | G57: Jorja | H57: Penny | I57: Penny-Jorja | J57: F | K57: 1 - to 11 years | L57: 4
A58: 2016-04-23 | B58: Town Common Loop | C58: 3 | D58: 13 | E58: 17.10 | F58: J_028 | G58: Jardine | H58: Cooper | I58: Cooper-Jardine | J58: M | K58: 2 - 12 years to 13 years | L58: 3
A59: 2016-04-23 | B59: Town Common Loop | C59: 3 | D59: 14 | E59: 17.27 | F59: 612421 | G59: Dylan | H59: Machin | I59: Machin-Dylan | J59: M | K59: 1 - to 11 years | L59: 3
A60: 2016-04-23 | B60: Town Common Loop | C60: 3 | D60: 15 | E60: 17.47 | F60: 402785 | G60: Taylor | H60: Stafford | I60: Stafford-Taylor | J60: F | K60: 2 - 12 years to 13 years | L60: 4
A61: 2016-04-23 | B61: Town Common Loop | C61: 3 | D61: 16 | E61: 18.17 | F61: J_007 | G61: Declan | H61: Punshon | I61: Punshon-Declan | J61: M | K61: 1 - to 11 years | L61: 2
A62: 2016-04-23 | B62: Town Common Loop | C62: 3 | D62: 17 | E62: 20.24 | F62: 565757 | G62: Gracy | H62: Chadwick-Bray | I62: Chadwick-Bray-Gracy | J62: F | K62: 3 - 14 years to 15 years | L62: 4
A63: 2016-04-23 | B63: Town Common Loop | C63: 3 | D63: 18 | E63: 25.06 | F63: J_025 | G63: Ella | H63: Raciti | I63: Raciti-Ella | J63: F | K63: 1 - to 11 years | L63: 3
A64: 2016-04-30 | B64: Alligator Creek Circuit | C64: 3 | D64: 1 | E64: 10.06 | F64: 511492 | G64: Riley | H64: Smithers | I64: Smithers-Riley | J64: M | K64: 3 - 14 years to 15 years | L64: 5
A65: 2016-04-30 | B65: Alligator Creek Circuit | C65: 3 | D65: 2 | E65: 10.14 | F65: 97077 | G65: Nathaniel | H65: Horne | I65: Horne-Nathaniel | J65: M | K65: 3 - 14 years to 15 years | L65: 4
A66: 2016-04-30 | B66: Alligator Creek Circuit | C66: 3 | D66: 3 | E66: 10.21 | F66: 402509 | G66: Elena | H66: James | I66: James-Elena | J66: F | K66: 3 - 14 years to 15 years | L66: 5
A67: 2016-04-30 | B67: Alligator Creek Circuit | C67: 3 | D67: 4 | E67: 10.28 | F67: 532459 | G67: Luka | H67: Bartulovich | I67: Bartulovich-Luka | J67: M | K67: 2 - 12 years to 13 years | L67: 5
A68: 2016-04-30 | B68: Alligator Creek Circuit | C68: 3 | D68: 5 | E68: 10.33 | F68: 573501 | G68: Leo | H68: Fairley | I68: =H68&"-"&G68 -> Fairley-Leo | J68: M | K68: 2 - 12 years to 13 years | L68: 4
A69: 2016-04-30 | B69: Alligator Creek Circuit | C69: 3 | D69: 6 | E69: 10.35 | F69: 402848 | G69: Josh | H69: Marquez | I69: Marquez-Josh | J69: M | K69: 2 - 12 years to 13 years | L69: 3
A70: 2016-04-30 | B70: Alligator Creek Circuit | C70: 3 | D70: 7 | E70: 11.19 | F70: 560071 | G70: Matthew | H70: Ferguson | I70: Ferguson-Matthew | J70: M | K70: 2 - 12 years to 13 years | L70: 2
A71: 2016-04-30 | B71: Alligator Creek Circuit | C71: 3 | D71: 8 | E71: 11.21 | F71: 612424 | G71: Jake | H71: Machin | I71: Machin-Jake | J71: M | K71: 2 - 12 years to 13 years | L71: 1
A72: 2016-04-30 | B72: Alligator Creek Circuit | C72: 3 | D72: 9 | E72: 11.41 | F72: 515441 | G72: Brooke | H72: Taylor | I72: Taylor-Brooke | J72: F | K72: 2 - 12 years to 13 years | L72: 5
A73: 2016-04-30 | B73: Alligator Creek Circuit | C73: 3 | D73: 10 | E73: 12.05 | F73: 402839 | G73: Lachlan | H73: Carey | I73: Carey-Lachlan | J73: M | K73: 3 - 14 years to 15 years | L73: 3
A74: 2016-04-30 | B74: Alligator Creek Circuit | C74: 3 | D74: 11 | E74: 12.51 | F74: J_032 | G74: Drew | H74: Marano | I74: Marano-Drew | J74: M | K74: 1 - to 11 years | L74: 5
A75: 2016-04-30 | B75: Alligator Creek Circuit | C75: 3 | D75: 12 | E75: 14.36 | F75: 612421 | G75: Dylan | H75: Machin | I75: Machin-Dylan | J75: M | K75: 1 - to 11 years | L75: 4
A76: 2016-04-30 | B76: Alligator Creek Circuit | C76: 3 | D76: 13 | E76: 14.58 | F76: J_031 | G76: Alli | H76: Jenkinson | I76: Jenkinson-Alli | J76: F | K76: 1 - to 11 years | L76: 5
A77: 2016-05-21 | B77: Townsville Ten Miler (PC) | C77: 2.9 | D77: 1 | E77: 11.34 | F77: 97077 | G77: Nathaniel | H77: Horne | I77: Horne-Nathaniel | J77: M | K77: 3 - 14 years to 15 years | L77: 5
A78: 2016-05-21 | B78: Townsville Ten Miler (PC) | C78: 2.9 | D78: 2 | E78: 11.55 | F78: 402509 | G78: Elena | H78: James | I78: James-Elena | J78: F | K78: 3 - 14 years to 15 years | L78: 5
A79: 2016-05-21 | B79: Townsville Ten Miler (PC) | C79: 2.9 | D79: 3 | E79: 12.46 | F79: 560071 | G79: Matthew | H79: Ferguson | I79: Ferguson-Matthew | J79: M | K79: 2 - 12 years to 13 years | L79: 5
A80: 2016-05-21 | B80: Townsville Ten Miler (PC) | C80: 2.9 | D80: 4 | E80: 13.13 | F80: 515441 | G80: Brooke | H80: Taylor | I80: Taylor-Brooke | J80: F | K80: 2 - 12 years to 13 years | L80: 5
A81: 2016-05-21 | B81: Townsville Ten Miler (PC) | C81: 2.9 | D81: 5 | E81: 15.24 | F81: J_033 | G81: Ned | H81: Fairley | I81: Fairley-Ned | J81: M | K81: 1 - to 11 years | L81: 5
A82: 2016-05-28 | B82: West Water Tanks | C82: 3 | D82: 1 | E82: 13.23 | F82: 97077 | G82: Nathaniel | H82: Horne | I82: Horne-Nathaniel | J82: M | K82: 3 - 14 years to 15 years | L82: 5
A83: 2016-05-28 | B83: West Water Tanks | C83: 3 | D83: 2 | E83: 13.41 | F83: 402509 | G83: Elena | H83: James | I83: James-Elena | J83: F | K83: 3 - 14 years to 15 years | L83: 5
A84: 2016-05-28 | B84: West Water Tanks | C84: 3 | D84: 3 | E84: 13.42 | F84: 532459 | G84: Luka | H84: Bartulovich | I84: Bartulovich-Luka | J84: M | K84: 2 - 12 years to 13 years | L84: 5
A85: 2016-05-28 | B85: West Water Tanks | C85: 3 | D85: 4 | E85: 13.45 | F85: 560071 | G85: Matthew | H85: Ferguson | I85: Ferguson-Matthew | J85: M | K85: 2 - 12 years to 13 years | L85: 4
A86: 2016-05-28 | B86: West Water Tanks | C86: 3 | D86: 5 | E86: 17.33 | F86: 565757 | G86: Gracy | H86: Chadwick-Bray | I86: Chadwick-Bray-Gracy | J86: F | K86: 3 - 14 years to 15 years | L86: 4
A87: 2016-06-04 | B87: Ross River Dam 10km Time Trial (PC) | C87: 3 | D87: 1 | E87: 13.11 | F87: 612424 | G87: Jake | H87: Machin | I87: Machin-Jake | J87: M | K87: 2 - 12 years to 13 years | L87: 5
A88: 2016-06-04 | B88: Ross River Dam 10km Time Trial (PC) | C88: 3 | D88: 2 | E88: 15.30 | F88: 565757 | G88: Gracy | H88: Chadwick-Bray | I88: Chadwick-Bray-Gracy | J88: F | K88: 3 - 14 years to 15 years | L88: 5
A89: 2016-06-04 | B89: Ross River Dam 10km Time Trial (PC) | C89: 3 | D89: 3 | E89: 19.03 | F89: 612421 | G89: Dylan | H89: Machin | I89: Machin-Dylan | J89: M | K89: 1 - to 11 years | L89: 5
A90: 2016-06-11 | B90: Running Works Cross Country Series Race 1 | C90: 3 | D90: 1 | E90: 12.56 | F90: J_001 | G90: William | H90: Kerby | I90: Kerby-William | J90: M | K90: N/A | L90: 5
A91: 2016-06-11 | B91: Running Works Cross Country Series Race 1 | C91: 3 | D91: 2 | E91: 13.46 | F91: 402509 | G91: Elena | H91: James | I91: James-Elena | J91: F | K91: 3 - 14 years to 15 years | L91: 5
A92: 2016-06-11 | B92: Running Works Cross Country Series Race 1 | C92: 3 | D92: 3 | E92: 14.28 | F92: 612424 | G92: Jake | H92: Machin | I92: Machin-Jake | J92: M | K92: 2 - 12 years to 13 years | L92: 5
A93: 2016-06-11 | B93: Running Works Cross Country Series Race 1 | C93: 3 | D93: 4 | E93: 14.38 | F93: J_002 | G93: Jayne | H93: Kerby | I93: Kerby-Jayne | J93: F | K93: N/A | L93: 5
A94: 2016-06-11 | B94: Running Works Cross Country Series Race 1 | C94: 3 | D94: 5 | E94: 20.10 | F94: 612421 | G94: Dylan | H94: Machin | I94: Machin-Dylan | J94: M | K94: 1 - to 11 years | L94: 5
A95: 2016-06-11 | B95: Running Works Cross Country Series Race 1 | C95: 3 | D95: 6 | E95: 20.50 | F95: J_022 | G95: Bella | H95: Norris | I95: Norris-Bella | J95: F | K95: 1 - to 11 years | L95: 5
A96: 2016-06-11 | B96: Running Works Cross Country Series Race 1 | C96: 3 | D96: 7 | E96: 21.32 | F96: J_036 | G96: Hannah | H96: Norris | I96: Norris-Hannah | J96: F | K96: 1 - to 11 years | L96: 4
A97: 2016-07-08 | B97: 3 Day Race-Day 1 | C97: 3 | D97: 1 | E97: 11.06 | F97: J_037 | G97: Yideg | H97: Nethery | I97: Nethery-Yideg | J97: M | K97: 3 - 14 years to 15 years | L97: 5
A98: 2016-07-08 | B98: 3 Day Race-Day 1 | C98: 3 | D98: 2 | E98: 11.11 | F98: 528022 | G98: Matthew | H98: Maguire | I98: Maguire-Matthew | J98: M | K98: 4 - 16 years to 17 years | L98: 5
A99: 2016-07-08 | B99: 3 Day Race-Day 1 | C99: 3 | D99: 3 | E99: 12.21 | F99: 402509 | G99: Elena | H99: James | I99: James-Elena | J99: F | K99: 3 - 14 years to 15 years | L99: 5
A100: 2016-07-08 | B100: 3 Day Race-Day 1 | C100: 3 | D100: 4 | E100: 12.23 | F100: 402386 | G100: Lauren | H100: Nugent | I100: Nugent-Lauren | J100: F | K100: 2 - 12 years to 13 years | L100: 5
A101: 2016-07-08 | B101: 3 Day Race-Day 1 | C101: 3 | D101: 5 | E101: 13.37 | F101: 612424 | G101: Jake | H101: Machin | I101: Machin-Jake | J101: M | K101: 2 - 12 years to 13 years | L101: 5
A102: 2016-07-08 | B102: 3 Day Race-Day 1 | C102: 3 | D102: 6 | E102: 16.59 | F102: J_038 | G102: Mikayla | H102: Godier | I102: Godier-Mikayla | J102: F | K102: 2 - 12 years to 13 years | L102: 4
A103: 2016-07-08 | B103: 3 Day Race-Day 1 | C103: 3 | D103: 7 | E103: 19.05 | F103: J_034 | G103: Isabella | H103: Godier | I103: Godier-Isabella | J103: F | K103: 3 - 14 years to 15 years | L103: 4
A104: 2016-07-08 | B104: 3 Day Race-Day 1 | C104: 3 | D104: 8 | E104: 20.54 | F104: 612421 | G104: Dylan | H104: Machin | I104: Machin-Dylan | J104: M | K104: 1 - to 11 years | L104: 5
A105: 2016-07-09 | B105: 3 Day Race-Day 2 | C105: 2 | D105: 1 | E105: 07.40 | F105: 402509 | G105: Elena | H105: James | I105: James-Elena | J105: F | K105: 3 - 14 years to 15 years | L105: 5
A106: 2016-07-09 | B106: 3 Day Race-Day 2 | C106: 2 | D106: 2 | E106: 07.49 | F106: J_030 | G106: Ethan | H106: Staunton | I106: Staunton-Ethan | J106: M | K106: 1 - to 11 years | L106: 5
A107: 2016-07-09 | B107: 3 Day Race-Day 2 | C107: 2 | D107: 3 | E107: 07.52 | F107: 402848 | G107: Josh | H107: Marquez | I107: Marquez-Josh | J107: M | K107: 2 - 12 years to 13 years | L107: 5
A108: 2016-07-09 | B108: 3 Day Race-Day 2 | C108: 2 | D108: 4 | E108: 08.38 | F108: 197247 | G108: Bella | H108: Marquez | I108: Marquez-Bella | J108: F | K108: 1 - to 11 years | L108: 5
A109: 2016-07-09 | B109: 3 Day Race-Day 2 | C109: 2 | D109: 5 | E109: 08.58 | F109: J_029 | G109: Molly | H109: Staunton | I109: Staunton-Molly | J109: F | K109: 1 - to 11 years | L109: 4
A110: 2016-07-09 | B110: 3 Day Race-Day 2 | C110: 2 | D110: 6 | E110: 15.29 | F110: J_034 | G110: Isabella | H110: Godier | I110: Godier-Isabella | J110: F | K110: 3 - 14 years to 15 years | L110: 4
A111: 2016-07-09 | B111: 3 Day Race-Day 2 | C111: 2 | D111: 7 | E111: 15.30 | F111: J_038 | G111: Mikayla | H111: Godier | I111: Godier-Mikayla | J111: F | K111: 2 - 12 years to 13 years | L111: 5
A112: 2016-07-16 | B112: Running Works Cross Country Series 2 | C112: 3 | D112: 1 | E112: 11.46 | F112: 612424 | G112: Jake | H112: Machin | I112: Machin-Jake | J112: M | K112: 2 - 12 years to 13 years | L112: 5
A113: 2016-07-16 | B113: Running Works Cross Country Series 2 | C113: 3 | D113: 2 | E113: 14.27 | F113: 612421 | G113: Dylan | H113: Machin | I113: Machin-Dylan | J113: M | K113: 1 - to 11 years | L113: 5
A114: 2016-07-16 | B114: Running Works Cross Country Series 2 | C114: 3 | D114: 3 | E114: 15.45 | F114: J_022 | G114: Bella | H114: Norris | I114: Norris-Bella | J114: F | K114: 1 - to 11 years | L114: 5
A115: 2016-07-30 | B115: Running Works Cross Country Series Race 3 | C115: 3 | D115: 1 | E115: 12.23 | F115: 573501 | G115: Leo | H115: Fairley | I115: Fairley-Leo | J115: M | K115: 2 - 12 years to 13 years | L115: 5
A116: 2016-07-30 | B116: Running Works Cross Country Series Race 3 | C116: 3 | D116: 2 | E116: 12.59 | F116: 402848 | G116: Josh | H116: Marquez | I116: Marquez-Josh | J116: M | K116: 2 - 12 years to 13 years | L116: 4
A117: 2016-07-30 | B117: Running Works Cross Country Series Race 3 | C117: 3 | D117: 3 | E117: 12.59 | F117: 97077 | G117: Nathaniel | H117: Horne | I117: Horne-Nathaniel | J117: M | K117: 3 - 14 years to 15 years | L117: 5
A118: 2016-07-30 | B118: Running Works Cross Country Series Race 3 | C118: 3 | D118: 4 | E118: 13.13 | F118: 402509 | G118: Elena | H118: James | I118: James-Elena | J118: F | K118: 3 - 14 years to 15 years | L118: 5
A119: 2016-07-30 | B119: Running Works Cross Country Series Race 3 | C119: 3 | D119: 5 | E119: 13.29 | F119: 612424 | G119: Jake | H119: Machin | I119: Machin-Jake | J119: M | K119: 2 - 12 years to 13 years | L119: 3
A120: 2016-07-30 | B120: Running Works Cross Country Series Race 3 | C120: 3 | D120: 6 | E120: 13.55 | F120: 560071 | G120: Matthew | H120: Ferguson | I120: Ferguson-Matthew | J120: M | K120: 2 - 12 years to 13 years | L120: 2
A121: 2016-07-30 | B121: Running Works Cross Country Series Race 3 | C121: 3 | D121: 7 | E121: 17.58 | F121: J_041 | G121: Ethan | H121: Sampson | I121: Sampson-Ethan | J121: M | K121: 1 - to 11 years | L121: 5
A122: 2016-07-30 | B122: Running Works Cross Country Series Race 3 | C122: 3 | D122: 8 | E122: 18.26 | F122: 612421 | G122: Dylan | H122: Machin | I122: Machin-Dylan | J122: M | K122: 1 - to 11 years | L122: 4
A123: 2016-07-30 | B123: Running Works Cross Country Series Race 3 | C123: 3 | D123: 9 | E123: 19.15 | F123: J_022 | G123: Bella | H123: Norris | I123: Norris-Bella | J123: F | K123: 1 - to 11 years | L123: 5
A124: 2016-07-30 | B124: Running Works Cross Country Series Race 3 | C124: 3 | D124: 10 | E124: 19.20 | F124: J_040 | G124: Meghan | H124: Knowles | I124: Knowles-Meghan | J124: F | K124: 1 - to 11 years | L124: 4
A125: 2016-07-30 | B125: Running Works Cross Country Series Race 3 | C125: 3 | D125: 11 | E125: 22.43 | F125: J_039 | G125: Hayley | H125: Knowles | I125: Knowles-Hayley | J125: F | K125: 1 - to 11 years | L125: 3
A126: 2016-08-20 | B126: Two Tunnels | C126: 3 | D126: 1 | E126: 12.01 | F126: 612424 | G126: Jake | H126: Machin | I126: Machin-Jake | J126: M | K126: 2 - 12 years to 13 years | L126: 5
A127: 2016-08-20 | B127: Two Tunnels | C127: 3 | D127: 2 | E127: 13.21 | F127: 612421 | G127: Dylan | H127: Machin | I127: Machin-Dylan | J127: M | K127: 1 - to 11 years | L127: 5
A128: 2016-08-27 | B128: North Ward Circuit | C128: 2 | D128: 1 | E128: 07.51 | F128: 402509 | G128: Elena | H128: James | I128: James-Elena | J128: F | K128: 3 - 14 years to 15 years | L128: 5
A129: 2016-08-27 | B129: North Ward Circuit | C129: 2 | D129: 2 | E129: 08.23 | F129: 612424 | G129: Jake | H129: Machin | I129: Machin-Jake | J129: M | K129: 2 - 12 years to 13 years | L129: 5
A130: 2016-08-27 | B130: North Ward Circuit | C130: 2 | D130: 3 | E130: 08.55 | F130: J_042 | G130: Francie | H130: Machin | I130: Machin-Francie | J130: F | K130: N/A | L130: 5
A131: 2016-08-27 | B131: North Ward Circuit | C131: 2 | D131: 4 | E131: 09.56 | F131: 565757 | G131: Gracy | H131: Chadwick-Bray | I131: Chadwick-Bray-Gracy | J131: F | K131: 3 - 14 years to 15 years | L131: 4
A132: 2016-08-27 | B132: North Ward Circuit | C132: 2 | D132: 5 | E132: 09.56 | F132: 612421 | G132: Dylan | H132: Machin | I132: =H132&"-"&G132 -> Machin-Dylan | J132: M | K132: 1 - to 11 years | L132: 5
A133: 2016-09-24 | B133: Around the Hill ANQ Championships | C133: 4 | D133: 1 | E133: 14.22 | F133: 402848 | G133: Josh | H133: Marquez | I133: Marquez-Josh | J133: M | K133: 2 - 12 years to 13 years | L133: 5
A134: 2016-09-24 | B134: Around the Hill ANQ Championships | C134: 4 | D134: 2 | E134: 15.31 | F134: 197247 | G134: Bella | H134: Marquez | I134: Marquez-Bella | J134: F | K134: 1 - to 11 years | L134: 5
A135: 2016-09-24 | B135: Around the Hill ANQ Championships | C135: 4 | D135: 3 | E135: 23.30 | F135: 565757 | G135: Gracy | H135: Chadwick-Bray | I135: Chadwick-Bray-Gracy | J135: F | K135: 3 - 14 years to 15 years | L135: 5
A136: 2016-09-03 | B136: King Queen of hill | C136: 3.1 | D136: 1 | E136: 15.55 | F136: Exclude (single run) | G136: Tesfa | H136: Nethery | I136: Nethery-Tesfa | J136: M | K136: N/A | L136: 5
A137: 2016-09-03 | B137: King Queen of hill | C137: 3.1 | D137: 2 | E137: 15.59 | F137: J_037 | G137: Yideg | H137: Nethery | I137: Nethery-Yideg | J137: M | K137: 3 - 14 years to 15 years | L137: 5
A138: 2016-09-03 | B138: King Queen of hill | C138: 3.1 | D138: 3 | E138: 17.25 | F138: J_030 | G138: Ethan | H138: Staunton | I138: Staunton-Ethan | J138: M | K138: 1 - to 11 years | L138: 5
A139: 2016-09-03 | B139: King Queen of hill | C139: 3.1 | D139: 4 | E139: 17.26 | F139: 323017 | G139: DECLAN | H139: MARCHIONI | I139: MARCHIONI-DECLAN | J139: M | K139: 3 - 14 years to 15 years | L139: 4
A140: 2016-09-03 | B140: King Queen of hill | C140: 3.1 | D140: 5 | E140: 17.59 | F140: 511492 | G140: Riley | H140: Smithers | I140: Smithers-Riley | J140: M | K140: 3 - 14 years to 15 years | L140: 3
A141: 2016-09-03 | B141: King Queen of hill | C141: 3.1 | D141: 6 | E141: 18.27 | F141: 402509 | G141: ELENA | H141: JAMES | I141: JAMES-ELENA | J141: F | K141: 3 - 14 years to 15 years | L141: 5
A142: 2016-09-03 | B142: King Queen of hill | C142: 3.1 | D142: 7 | E142: 18.31 | F142: 532459 | G142: LUKA | H142: BARTULOVICH | I142: BARTULOVICH-LUKA | J142: M | K142: 2 - 12 years to 13 years | L142: 5
A143: 2016-09-03 | B143: King Queen of hill | C143: 3.1 | D143: 8 | E143: 19.34 | F143: 660311 | G143: Shirley | H143: Alcock | I143: Alcock-Shirley | J143: F | K143: 3 - 14 years to 15 years | L143: 4
A144: 2016-09-03 | B144: King Queen of hill | C144: 3.1 | D144: 9 | E144: 20.47 | F144: 612424 | G144: JAKE | H144: MACHIN | I144: MACHIN-JAKE | J144: M | K144: 2 - 12 years to 13 years | L144: 4
A145: 2016-09-03 | B145: King Queen of hill | C145: 3.1 | D145: 10 | E145: 20.49 | F145: J_029 | G145: Molly | H145: Staunton | I145: Staunton-Molly | J145: F | K145: 1 - to 11 years | L145: 5
A146: 2016-09-03 | B146: King Queen of hill | C146: 3.1 | D146: 11 | E146: 22.41 | F146: Exclude (single run) | G146: Sam | H146: McGhie | I146: McGhie-Sam | J146: M | K146: N/A | L146: 4
A147: 2016-09-03 | B147: King Queen of hill | C147: 3.1 | D147: 12 | E147: 22.43 | F147: Exclude (single run) | G147: Jett | H147: McGhie | I147: McGhie-Jett | J147: M | K147: N/A | L147: 3
A148: 2016-09-03 | B148: King Queen of hill | C148: 3.1 | D148: 13 | E148: 23.19 | F148: J_011 | G148: Max | H148: Schick | I148: Schick-Max | J148: M | K148: 1 - to 11 years | L148: 4
A149: 2016-09-03 | B149: King Queen of hill | C149: 3.1 | D149: 14 | E149: 23.46 | F149: 612421 | G149: DYLAN | H149: MACHIN | I149: MACHIN-DYLAN | J149: M | K149: 1 - to 11 years | L149: 3
A150: 2016-09-03 | B150: King Queen of hill | C150: 3.1 | D150: 15 | E150: 28.31 | F150: Exclude (single run) | G150: Reg | H150: Alcock | I150: Alcock-Reg | J150: M | K150: N/A | L150: 2
A151: 2016-09-03 | B151: King Queen of hill | C151: 3.1 | D151: 16 | E151: 32.05 | F151: Exclude (single run) | G151: Dylan | H151: Talbot | I151: Talbot-Dylan | J151: M | K151: N/A | L151: 1
A152: 2016-09-03 | B152: King Queen of hill | C152: 3.1 | D152: 17 | E152: 34.23 | F152: Exclude (single run) | G152: Michael | H152: Barrier | I152: Barrier-Michael | J152: M | K152: N/A | L152: 0
A153: 2016-10-01 | B153: East Water Tanks | C153: 2 | D153: 1 | E153: NTR | F153: 402848 | G153: Josh | H153: Marquez | I153: Marquez-Josh | J153: M | K153: 2 - 12 years to 13 years | L153: 5
A154: 2016-10-01 | B154: East Water Tanks | C154: 2 | D154: 2 | E154: NTR | F154: 402509 | G154: Elena | H154: James | I154: James-Elena | J154: F | K154: 3 - 14 years to 15 years | L154: 5
A155: 2016-10-01 | B155: East Water Tanks | C155: 2 | D155: 3 | E155: NTR | F155: 197247 | G155: Bella | H155: Marquez | I155: Marquez-Bella | J155: F | K155: 1 - to 11 years | L155: 5
A156: 2016-10-01 | B156: East Water Tanks | C156: 2 | D156: 4 | E156: NTR | F156: 612424 | G156: Jake | H156: Machin | I156: Machin-Jake | J156: M | K156: 2 - 12 years to 13 years | L156: 4
A157: 2016-10-01 | B157: East Water Tanks | C157: 2 | D157: 5 | E157: NTR | F157: 565757 | G157: Gracy | H157: Chadwick-Bray | I157: Chadwick-Bray-Gracy | J157: F | K157: 3 - 14 years to 15 years | L157: 4
A158: 2016-10-01 | B158: East Water Tanks | C158: 2 | D158: 6 | E158: NTR | F158: 612421 | G158: Dylan | H158: Machin | I158: Machin-Dylan | J158: M | K158: 1 - to 11 years | L158: 5

Sheet Points Table (hidden)
A1: 2016 Junior Points Tables
B2: 2016-03-12 | C2: 2016-04-02 | D2: 2016-04-16 | E2: 2016-04-23 | F2: 2016-04-30 | G2: 2016-05-21 | H2: 2016-05-28 | I2: 2016-06-04 | J2: 2016-06-11 | K2: 2016-07-08 | L2: 2016-07-09 | M2: 2016-07-16 | N2: 2016-07-30 | O2: 2016-08-20 | P2: 2016-08-27 | Q2: 2016-09-03 | R2: 2016-09-24 | S2: 2016-10-01 | T2: Grand Total | X2: 4
A3: Name | B3: Strand Run | C3: Fairfield Waters Run | D3: River Lower Loop | E3: Town Common Loop | F3: Alligator Creek Circuit | G3: Townsville Ten Miler (PC) | H3: West Water Tanks | I3: Ross River Dam 10km Time Trial (PC) | J3: Running Works Cross Country Series Race 1 | K3: 3 Day Race-Day 1 | L3: 3 Day Race-Day 2 | M3: Running Works Cross Country Series 2 | N3: Running Works Cross Country Series Race 3 | O3: Two Tunnels | P3: North Ward Circuit | Q3: King Queen of hill | R3: Around the Hill ANQ Championships | S3: East Water Tanks | T3: Total | U3: No. of Runs | V3: Points per Run | W3: Age Group | X3: Gender | Y3: Eligible
A4: Alcock-Shirley | Q4: 4 | T4: 4 | U4: 1 | V4: =T4/U4 -> 4 | W4: 3 - 14 years to 15 years | X4: F | Y4: No
A5: Bartulovich-Luka | D5: 4 | F5: 5 | H5: 5 | Q5: 5 | T5: 19 | U5: 4 | V5: 4.75 | W5: 2 - 12 years to 13 years | X5: M | Y5: Yes
A6: Carey-Lachlan | D6: 4 | E6: 3 | F6: 3 | T6: 10 | U6: 3 | V6: 3.333333333 | W6: 3 - 14 years to 15 years | X6: M | Y6: No
A7: Chadwick-Bray-Gracy | D7: 4 | E7: 4 | H7: 4 | I7: 5 | P7: 4 | R7: 5 | S7: 4 | T7: 30 | U7: 7 | V7: 4.285714286 | W7: 3 - 14 years to 15 years | X7: F | Y7: Yes
A8: Cooper-Jardine | E8: 3 | T8: 3 | U8: 1 | V8: 3 | W8: 2 - 12 years to 13 years | X8: M | Y8: No
A9: Fairley-Leo | D9: 5 | E9: 5 | F9: 4 | N9: 5 | T9: 19 | U9: 4 | V9: 4.75 | W9: 2 - 12 years to 13 years | X9: M | Y9: Yes
A10: Fairley-Ned | G10: 5 | T10: 5 | U10: 1 | V10: 5 | W10: 1 - to 11 years | X10: M | Y10: No
A11: Ferguson-Matthew | C11: 4 | D11: 3 | F11: 2 | G11: 5 | H11: 4 | N11: 2 | T11: 20 | U11: 6 | V11: 3.333333333 | W11: 2 - 12 years to 13 years | X11: M | Y11: Yes
A12: Godier-Isabella | K12: 4 | L12: 4 | T12: 8 | U12: 2 | V12: 4 | W12: 3 - 14 years to 15 years | X12: F | Y12: No
A13: Godier-Mikayla | K13: 4 | L13: 5 | T13: 9 | U13: 2 | V13: 4.5 | W13: 2 - 12 years to 13 years | X13: F | Y13: No
A14: Horne-Nathaniel | B14: 4 | C14: 4 | D14: 3 | E14: 4 | F14: 4 | G14: 5 | H14: 5 | N14: 5 | T14: 34 | U14: 8 | V14: 4.25 | W14: 3 - 14 years to 15 years | X14: M | Y14: Yes
A15: James-Elena | B15: 5 | C15: 5 | D15: 5 | E15: 5 | F15: 5 | G15: 5 | H15: 5 | J15: 5 | K15: 5 | L15: 5 | N15: 5 | P15: 5 | Q15: 5 | S15: 5 | T15: 70 | U15: 14 | V15: 5 | W15: 3 - 14 years to 15 years | X15: F | Y15: Yes
A16: Jenkinson-Alli | F16: 5 | T16: 5 | U16: 1 | V16: 5 | W16: 1 - to 11 years | X16: F | Y16: No
A17: Kipping-Hannah | B17: 4 | T17: 4 | U17: 1 | V17: 4 | W17: 3 - 14 years to 15 years | X17: F | Y17: No
A18: Knowles-Hayley | N18: 3 | T18: 3 | U18: 1 | V18: 3 | W18: 1 - to 11 years | X18: F | Y18: No
A19: Knowles-Meghan | N19: 4 | T19: 4 | U19: 1 | V19: 4 | W19: 1 - to 11 years | X19: F | Y19: No
A20: Latouf-Connor | B20: 5 | C20: 5 | D20: 5 | T20: 15 | U20: 3 | V20: 5 | W20: 3 - 14 years to 15 years | X20: M | Y20: No
A21: Latouf-Reilly | B21: 5 | C21: 5 | D21: 5 | T21: 15 | U21: 3 | V21: 5 | W21: 1 - to 11 years | X21: M | Y21: No
A22: Leyton-Clifford | B22: 4 | T22: 4 | U22: 1 | V22: 4 | W22: 2 - 12 years to 13 years | X22: M | Y22: No
A23: Machin-Dylan | C23: 3 | E23: 3 | F23: 4 | I23: 5 | J23: 5 | K23: 5 | M23: 5 | N23: 4 | O23: 5 | P23: 5 | Q23: 3 | S23: 5 | T23: 52 | U23: 12 | V23: 4.333333333 | W23: 1 - to 11 years | X23: M | Y23: Yes
A24: Machin-Jake | C24: 3 | E24: 4 | F24: 1 | I24: 5 | J24: 5 | K24: 5 | M24: 5 | N24: 3 | O24: 5 | P24: 5 | Q24: 4 | S24: 4 | T24: 49 | U24: 12 | V24: 4.083333333 | W24: 2 - 12 years to 13 years | X24: M | Y24: Yes
A25: Maguire-Matthew | K25: 5 | T25: 5 | U25: 1 | V25: 5 | W25: 4 - 16 years to 17 years | X25: M | Y25: No
A26: Marano-Drew | F26: 5 | T26: 5 | U26: 1 | V26: 5 | W26: 1 - to 11 years | X26: M | Y26: No
A27: Marchioni-Declan | E27: 5 | Q27: 4 | T27: 9 | U27: 2 | V27: 4.5 | W27: 3 - 14 years to 15 years | X27: M | Y27: No
A28: Marquez-Bella | B28: 5 | C28: 5 | L28: 5 | R28: 5 | S28: 5 | T28: 25 | U28: 5 | V28: 5 | W28: 1 - to 11 years | X28: F | Y28: Yes
A29: Marquez-Josh | B29: 5 | C29: 5 | F29: 3 | L29: 5 | N29: 4 | R29: 5 | S29: 5 | T29: 32 | U29: 7 | V29: 4.571428571 | W29: 2 - 12 years to 13 years | X29: M | Y29: Yes
A30: Nethery-Yideg | K30: 5 | Q30: 5 | T30: 10 | U30: 2 | V30: 5 | W30: 3 - 14 years to 15 years | X30: M | Y30: No
A31: Norris-Bella | D31: 5 | J31: 5 | M31: 5 | N31: 5 | T31: 20 | U31: 4 | V31: 5 | W31: 1 - to 11 years | X31: F | Y31: Yes
A32: Norris-Hannah | J32: 4 | T32: 4 | U32: 1 | V32: 4 | W32: 1 - to 11 years | X32: F | Y32: No
A33: Nugent-Lauren | K33: 5 | T33: 5 | U33: 1 | V33: 5 | W33: 2 - 12 years to 13 years | X33: F | Y33: No
A34: Penny-Jorja | E34: 4 | T34: 4 | U34: 1 | V34: 4 | W34: 1 - to 11 years | X34: F | Y34: No
A35: Punshon-Declan | C35: 2 | D35: 4 | E35: 2 | T35: 8 | U35: 3 | V35: 2.666666667 | W35: 1 - to 11 years | X35: M | Y35: No
A36: Punshon-Thaddaeus | C36: 5 | T36: 5 | U36: 1 | V36: 5 | W36: 4 - 16 years to 17 years | X36: M | Y36: No
A37: Raciti-Ella | E37: 3 | T37: 3 | U37: 1 | V37: 3 | W37: 1 - to 11 years | X37: F | Y37: No
A38: Sampson-Ethan | N38: 5 | T38: 5 | U38: 1 | V38: 5 | W38: 1 - to 11 years | X38: M | Y38: No
A39: Schick-Caitlin | C39: 4 | T39: 4 | U39: 1 | V39: 4 | W39: 3 - 14 years to 15 years | X39: F | Y39: No
A40: Schick-Emma | C40: 4 | T40: 4 | U40: 1 | V40: 4 | W40: 1 - to 11 years | X40: F | Y40: No
A41: Schick-Max | C41: 4 | Q41: 4 | T41: 8 | U41: 2 | V41: 4 | W41: 1 - to 11 years | X41: M | Y41: No
A42: Smithers-Riley | F42: 5 | Q42: 3 | T42: 8 | U42: 2 | V42: 4 | W42: 3 - 14 years to 15 years | X42: M | Y42: No
A43: Stafford-Taylor | B43: 4 | C43: 4 | D43: 4 | E43: 4 | T43: 16 | U43: 4 | V43: 4 | W43: 2 - 12 years to 13 years | X43: F | Y43: Yes
A44: Stallan-Kye | E44: 4 | T44: 4 | U44: 1 | V44: 4 | W44: 1 - to 11 years | X44: M | Y44: No
A45: Stallan-Tyla | E45: 5 | T45: 5 | U45: 1 | V45: 5 | W45: 4 - 16 years to 17 years | X45: F | Y45: No
A46: Staunton-Ethan | E46: 5 | L46: 5 | Q46: 5 | T46: 15 | U46: 3 | V46: 5 | W46: 1 - to 11 years | X46: M | Y46: No
A47: Staunton-Molly | E47: 5 | L47: 4 | Q47: 5 | T47: 14 | U47: 3 | V47: 4.666666667 | W47: 1 - to 11 years | X47: F | Y47: No
A48: Stokes-Eloise | C48: 5 | T48: 5 | U48: 1 | V48: 5 | W48: 4 - 16 years to 17 years | X48: F | Y48: No
A49: Taylor-Brooke | B49: 5 | C49: 5 | D49: 5 | E49: 5 | F49: 5 | G49: 5 | T49: 30 | U49: 6 | V49: 5 | W49: 2 - 12 years to 13 years | X49: F | Y49: Yes

Sheet Summary
A1: Townsville Road Runners 2016 Junior Results
A2: Eligible | B2: Yes | C2: Need 4 runs to be eligible
A3: Min 4 runs required to be eligible for Age Group Categories
A4: Gender | B4: Age Group | C4: Name | D4: Total Points | E4: No. of Runs | F4: Ave. Points Per Run | G4: Age Group Place (based on Total Points) | H4: Average Place per Run | I4: Overall Best Junior Male and Female (Eligibility Criteria for Overall Best Male and Female was completing 60% of the 18 junior runs = 10 runs)
A5: F | B5: 1 - to 11 years | C5: Marquez-Bella | D5: 25 | E5: 5 | F5: 5 | G5: 1st | H5: =SUMIFS('Run Results'!D:D,'Run Results'!I:I,$C5)/E5 -> 4.8
C6: Norris-Bella | D6: 20 | E6: 4 | F6: 5 | G6: 2nd | H6: =SUMIFS('Run Results'!D:D,'Run Results'!I:I,$C6)/E6 -> 7.5
B7: 2 - 12 years to 13 years | C7: Taylor-Brooke | D7: 30 | E7: 6 | F7: 5 | G7: 1st | H7: =SUMIFS('Run Results'!D:D,'Run Results'!I:I,$C7)/E7 -> 6.833333333
C8: Stafford-Taylor | D8: 16 | E8: 4 | F8: 4 | G8: 2nd | H8: =SUMIFS('Run Results'!D:D,'Run Results'!I:I,$C8)/E8 -> 13.5
B9: 3 - 14 years to 15 years | C9: James-Elena | D9: 70 | E9: 14 | F9: 5 | G9: 1st | H9: =SUMIFS('Run Results'!D:D,'Run Results'!I:I,$C9)/E9 -> 2.714285714 | I9: Best Junior Female (Averaged 2.7th place over 14 runs)
C10: Chadwick-Bray-Gracy | D10: 30 | E10: 7 | F10: 4.285714286 | G10: 2nd | H10: =SUMIFS('Run Results'!D:D,'Run Results'!I:I,$C10)/E10 -> 6.571428571
A11: M | B11: 1 - to 11 years | C11: Machin-Dylan | D11: 52 | E11: 12 | F11: 4.333333333 | G11: 1st | H11: =SUMIFS('Run Results'!D:D,'Run Results'!I:I,$C11)/E11 -> 7.583333333
B12: 2 - 12 years to 13 years | C12: Machin-Jake | D12: 49 | E12: 12 | F12: 4.083333333 | G12: 1st | H12: =SUMIFS('Run Results'!D:D,'Run Results'!I:I,$C12)/E12 -> 4.833333333 | I12: Best Junior Male (Averaged 4.8th place over 12 runs)#
C13: Marquez-Josh | D13: 32 | E13: 7 | F13: 4.571428571 | G13: 2nd | H13: =SUMIFS('Run Results'!D:D,'Run Results'!I:I,$C13)/E13 -> 3.285714286
C14: Ferguson-Matthew | D14: 20 | E14: 6 | F14: 3.333333333 | G14: 3rd | H14: =SUMIFS('Run Results'!D:D,'Run Results'!I:I,$C14)/E14 -> 5.166666667
C15: Bartulovich-Luka | D15: 19 | E15: 4 | F15: 4.75 | G15: Equal 4th | H15: =SUMIFS('Run Results'!D:D,'Run Results'!I:I,$C15)/E15 -> 4.5
C16: Fairley-Leo | D16: 19 | E16: 4 | F16: 4.75 | G16: Equal 4th | H16: =SUMIFS('Run Results'!D:D,'Run Results'!I:I,$C16)/E16 -> 3.5
B17: 3 - 14 years to 15 years | C17: Horne-Nathaniel | D17: 34 | E17: 8 | F17: 4.25 | G17: 1st | H17: =SUMIFS('Run Results'!D:D,'Run Results'!I:I,$C17)/E17 -> 2.875
A18: Grand Total | D18: 416 | E18: 93 | F18: 58.35714286
A20: # Per the Junior Website page, "to be eligible for the series, runners must complete at least 60% of the junior races". As there were 18 runs in the junior series, 60% is 10 or more runs.
